fUST/lending_fUST_20250913
["ID","MTS","AMOUNT","RATE_DAILY","PERIOD"]
[385242515,1757700650323,-4739.16,0.000247,7]
[385242516,1757700650332,-188.068656,0.000247,7]
[385242517,1757700650342,-188.068656,0.000247,7]
[385242518,1757700650351,-188.068656,0.000247,7]
[385242519,1757700650361,-188.068655,0.000247,7]
[385242520,1757700650369,-151.0,0.000247,7]
[385242521,1757700650379,-151.0,0.000247,7]
[385242522,1757700650388,-233.13074058,0.000247,3]
[385242523,1757700650399,-890.79601231,0.000247,2]
[385242524,1757700650409,-4095.23683762,0.000247,2]
[385242525,1757700650419,-2000.0,0.00024712,2]
[385242526,1757700650428,-363.0,0.00024716,2]
[385242527,1757700650438,-2000.0,0.00024726,2]
[385242528,1757700650447,-1003.94959228,0.0002473,2]
[385242529,1757700650457,-500.0,0.0002473,2]
[385242530,1757700650467,-500.0,0.00024761,2]
[385242531,1757700650476,-16568.74612884,0.00024774,2]
[385242532,1757700650486,-207590.11010637,0.0002479,15]
[385242533,1757700650643,-16403.82067082,0.0002479,15]
[385242534,1757700650655,-115891.94017171,0.0002479,15]
[385242535,1757700650670,-451.64538587,0.0002479,15]
[385242542,1757700808715,423.323841,0.00013699,2]
[385242560,1757701720995,150.99999944,0.0002,120]
[385242566,1757701726309,34631.16,0.00014,2]
[385242623,1757701832364,-226.02086361,0.00017285,2]
[385242624,1757701832374,-226.02086361,0.0001746,2]
[385242625,1757701832384,-167.10432488,0.000179,2]
[385242626,1757701832394,-300.0,0.00017999,2]
[385242627,1757701832404,-26982.92864248,0.00018,2]
[385242628,1757701832414,-9582.03297258,0.00018,2]
[385242629,1757701832423,-11960.0,0.00018,2]
[385242631,1757701832433,-18251.03384842,0.00018,2]
[385242632,1757701832443,-300.0,0.00018359,2]
[385242633,1757701832452,-300.0,0.00018359,2]
[385242634,1757701832461,-300.0,0.00018359,2]
[385242635,1757701832470,-300.0,0.00018359,2]
[385242636,1757701832480,-300.0,0.00018359,2]
[385242637,1757701832490,-300.0,0.00018359,2]
[385242638,1757701832499,-300.0,0.00018359,2]
[385242639,1757701832509,-300.0,0.00018359,2]
[385242640,1757701832518,-300.0,0.00018359,2]
[385242641,1757701832528,-300.0,0.00018359,2]
[385242642,1757701832538,-300.0,0.00018359,2]
[385242643,1757701832547,-300.0,0.00018359,2]
[385242644,1757701832557,-300.0,0.00018359,2]
[385242645,1757701832566,-300.0,0.00018359,2]
[385242646,1757701832575,-300.0,0.00018359,2]
[385242647,1757701832585,-600.0,0.00018359,2]
[385242648,1757701832594,-373.6780342,0.00018975,2]
[385242649,1757701832603,-420.0,0.00019639,2]
[385242650,1757701832612,-5830.48975848,0.000199,2]
[385242651,1757701832621,-423.323841,0.00020187,2]
[385242652,1757701832630,-720.0,0.00020195,20]
[385242653,1757701832640,-225.22004204,0.00020986,2]
[385242654,1757701832650,-160.0,0.00021074,2]
[385242655,1757701832659,-847.0429734,0.00021074,2]
[385242656,1757701832669,-160.0,0.00021087,2]
[385242657,1757701832679,-233.13074058,0.00021087,2]
[385242658,1757701832688,-217.7145751,0.00021087,2]
[385242659,1757701832697,-5830.48975838,0.00021149,2]
[385242660,1757701832707,-160.0,0.00021175,2]
[385242661,1757701832716,-1000.0,0.000212,2]
[385242662,1757701832725,-1290.92,0.0002129,10]
[385242663,1757701832734,-1075.77,0.0002129,10]
[385242664,1757701832743,-896.47,0.0002129,10]
[385242665,1757701832752,-152275.77959531,0.000213,2]
[385242666,1757701832762,-403.0,0.00021428,2]
[385242667,1757701832771,-260.0,0.00021723,2]
[385242668,1757701832781,-521.33749465,0.000219,2]
[385242669,1757701832790,-92432.17,0.00022,7]
[385242670,1757701832800,-8643.25,0.00022,7]
[385242671,1757701832809,-174.44,0.00022,2]
[385242672,1757701832819,-864.0,0.00022214,20]
[385242673,1757701832828,-440.0,0.00022271,2]
[385242674,1757701832837,-5830.48975838,0.00022398,2]
[385242675,1757701832846,-3791.33,0.000224,7]
[385242676,1757701832856,-174.44,0.00022871,2]
[385242677,1757701832865,-634.0,0.00023174,2]
[385242678,1757701832874,-2155.0,0.00023174,2]
[385242679,1757701832883,-409.0,0.00023174,2]
[385242680,1757701832893,-979.25,0.00023287,2]
[385242681,1757701832903,-151.191,0.00023391,3]
[385242682,1757701832914,-200.0,0.0002362,8]
[385242683,1757701832923,-5830.48975838,0.00023647,2]
[385242684,1757701832933,-174.44,0.00023743,2]
[385242685,1757701832943,-417.15472785,0.00024,3]
[385242686,1757701832952,-847.0429734,0.00024,7]
[385242687,1757701832961,-8643.25,0.00024,7]
[385242688,1757701832971,-303.1260357,0.00024403,2]
[385242689,1757701832981,-153.0,0.00024403,2]
[385242690,1757701832991,-1000.0,0.00024436,20]
[385242691,1757701833000,-153.0,0.00024492,2]
[385242692,1757701833010,-153.0,0.00024492,2]
[385242693,1757701833019,-153.0,0.00024492,2]
[385242694,1757701833029,-153.0,0.00024492,2]
[385242695,1757701833038,-92432.17,0.000245,7]
[385242696,1757701833048,-847.0429734,0.000245,7]
[385242697,1757701833057,-1914.788649,0.0002458,5]
[385242698,1757701833067,-500.0,0.000246,9]
[385242699,1757701833076,-1000.0,0.000246,5]
[385242700,1757701833087,-500.0,0.000246,9]
[385242701,1757701833096,-174.44,0.00024614,2]
[385242702,1757701833106,-1000.0,0.0002462,5]
[385242703,1757701833116,-1000.0,0.0002464,5]
[385242704,1757701833126,-200.0,0.00024658,15]
[385242705,1757701833136,-380.0,0.00024658,2]
[385242706,1757701833145,-1517.483052,0.0002466,5]
[385242707,1757701833157,-1000.0,0.0002466,5]
[385242708,1757701833167,-1000.0,0.0002468,5]
[385242709,1757701833177,-1000.0,0.0002468,5]
[385242710,1757701833188,-1000.0,0.000247,5]
[385242711,1757701833200,-1000.0,0.000247,5]
[385242712,1757701833210,-250.0,0.000247,10]
[385242713,1757701833220,-233.13074058,0.000247,7]
[385242714,1757701833229,-1000.0,0.0002472,5]
[385242715,1757701833239,-1000.0,0.0002472,5]
[385242716,1757701833249,-1000.0,0.0002474,5]
[385242717,1757701833258,-1000.0,0.0002474,5]
[385242718,1757701833267,-1225.202402,0.0002476,2]
[385242719,1757701833278,-5538.0002251,0.0002476,2]
[385242720,1757701833287,-1000.0,0.0002476,5]
[385242721,1757701833296,-1000.0,0.0002476,5]
[385242722,1757701833306,-456.0,0.00024761,2]
[385242723,1757701833440,-157.0,0.00024761,2]
[385242724,1757701833450,-500.0,0.00024773,2]
[385242725,1757701833460,-500.0,0.00024773,2]
[385242726,1757701833469,-387.46619977,0.00024773,2]
[385242727,1757701833479,-500.0,0.00024773,2]
[385242728,1757701833489,-500.0,0.00024773,2]
[385242729,1757701833498,-500.0,0.00024773,2]
[385242730,1757701833508,-500.0,0.00024773,2]
[385242731,1757701833517,-500.0,0.00024773,2]
[385242732,1757701833527,-500.0,0.00024773,2]
[385242733,1757701833537,-500.0,0.00024773,2]
[385242734,1757701833547,-500.0,0.00024773,2]
[385242735,1757701833557,-500.0,0.00024773,2]
[385242736,1757701833567,-500.0,0.00024773,2]
[385242737,1757701833576,-500.0,0.00024773,2]
[385242738,1757701833584,-500.0,0.00024773,2]
[385242739,1757701833593,-500.0,0.00024773,2]
[385242740,1757701833603,-362.1210654,0.00024773,2]
[385242741,1757701833612,-1000.0,0.0002478,5]
[385242742,1757701833621,-1000.0,0.0002478,5]
[385242743,1757701833630,-410251.11368072,0.0002479,15]
[385242744,1757701833639,-151.0,0.0002479,7]
[385242745,1757701833649,-151.0,0.0002479,7]
[385242746,1757701833658,-151.0,0.0002479,7]
[385242747,1757701833667,-151.0,0.0002479,7]
[385242748,1757701833676,-151.0,0.0002479,7]
[385242749,1757701833686,-151.0,0.0002479,7]
[385242750,1757701833695,-151.0,0.0002479,7]
[385242751,1757701833705,-151.0,0.0002479,7]
[385242752,1757701833714,-151.0,0.0002479,7]
[385242753,1757701833723,-151.0,0.0002479,7]
[385242754,1757701833733,-151.0,0.0002479,7]
[385242755,1757701833742,-151.0,0.0002479,7]
[385242756,1757701833752,-151.0,0.0002479,7]
[385242757,1757701833761,-151.248937,0.0002479,7]
[385242758,1757701833770,-151.124082,0.0002479,7]
[385242759,1757701833780,-1733.13825089,0.000248,4]
[385242760,1757701833789,-1961.42,0.000248,7]
[385242761,1757701833798,-3791.33,0.000248,7]
[385242762,1757701833807,-151.0,0.000248,7]
[385242763,1757701833816,-151.0,0.000248,7]
[385242764,1757701833826,-1000.0,0.000248,5]
[385242765,1757701833835,-1000.0,0.000248,5]
[385242766,1757701833845,-151.0,0.000248,7]
[385242767,1757701833854,-250.0,0.000248,10]
[385242768,1757701833864,-3685.71315384,0.000248,2]
[385242769,1757701833876,-61480.4914244,0.000248,2]
[385242770,1757701833885,-500.0,0.00024873,2]
[385242771,1757701833895,-500.0,0.00024873,2]
[385242772,1757701833907,-500.0,0.00024873,2]
[385242773,1757701833918,-500.0,0.00024873,2]
[385242774,1757701833928,-362.0,0.0002488,2]
[385242775,1757701833938,-363.0,0.00024891,7]
[385242776,1757701833948,-5830.48975838,0.00024896,2]
[385242777,1757701833958,-151.0,0.000249,7]
[385242778,1757701833967,-151.0,0.000249,7]
[385242779,1757701833976,-151.0,0.000249,7]
[385242780,1757701833986,-250.0,0.000249,10]
[385242781,1757701833996,-737263.754239,0.000249,2]
[385242782,1757701834005,-151.0,0.000249,7]
[385242783,1757701834015,-168.0,0.00024902,2]
[385242784,1757701834024,-201.33760362,0.00024973,2]
[385242785,1757701834033,-500.0,0.00024973,2]
[385242786,1757701834043,-1152.464775,0.0002498,5]
[385242787,1757701834053,-10000.0,0.00025,30]
[385242788,1757701834062,-207.0,0.00025,30]
[385242789,1757701834071,-1070.18548945,0.00025,2]
[385242790,1757701834082,-16108.86618942,0.00025,2]
[385242791,1757701834299,-2635.75896457,0.00025,2]
[385242792,1757701834309,-208.95789907,0.00025,2]
[385242793,1757701834319,-10364.0,0.00025,2]
[385242794,1757701834328,-360.72727545,0.00025,2]
[385242795,1757701834338,-500.0,0.00025,2]
[385242796,1757701834347,-104954.1510142,0.00025,2]
[385242797,1757701834357,-600.0,0.00025,2]
[385242798,1757701834367,-10200.0,0.00025,2]
[385242799,1757701834379,-160.0,0.00025,30]
[385242800,1757701834388,-500.0,0.00025,5]
[385242801,1757701834398,-6150.694445,0.00025,30]
[385242802,1757701834408,-151.0,0.00025,7]
[385242803,1757701834417,-151.0,0.00025,7]
[385242804,1757701834427,-1000.0,0.00025,5]
[385242805,1757701834438,-160.0,0.00025,30]
[385242806,1757701834447,-250.0,0.00025,10]
[385242807,1757701834456,-531.04384426,0.00025,30]
[385242808,1757701834466,-233.13074058,0.00025,30]
[385242809,1757701834475,-417.15472785,0.00025,30]
[385242810,1757701834485,-168.454573,0.00025,7]
[385242811,1757701834496,-847.0429734,0.00025,30]
[385242812,1757701834505,-456.0,0.00025035,2]
[385242813,1757701834515,-255.0,0.00025035,2]
[385242814,1757701834528,-180.06482334,0.0002508,2]
[385242815,1757701834538,-250.0,0.000251,10]
[385242816,1757701834548,-449.44474474,0.00025142,2]
[385242817,1757701834557,-250.0,0.000252,10]
[385242818,1757701834567,-200.0,0.0002522,12]
[385242819,1757701834577,-3685.71315377,0.00025252,2]
[385242820,1757701834587,-250.0,0.000253,10]
[385242821,1757701834598,-456.0,0.00025309,2]
[385242822,1757701834607,-260.66307946,0.00025321,2]
[385242823,1757701834617,-250.0,0.000254,10]
[385242824,1757701834627,-501.97059172,0.00025421,2]
[385242825,1757701834636,-1000.0,0.00025421,2]
[385242826,1757701834646,-900.0,0.00025469,3]
[385242827,1757701834657,-174.44,0.00025486,7]
[385242828,1757701834666,-10000.0,0.000255,2]
[385242829,1757701834675,-1000.0,0.000255,2]
[385242830,1757701834684,-250.0,0.000255,10]
[385242831,1757701834693,-8643.25,0.000255,7]
[385242832,1757701834703,-250.0,0.00025521,2]
[385242833,1757701834713,-300.0,0.00025521,2]
[385242834,1757701834723,-456.0,0.00025583,2]
[385242835,1757701834733,-250.0,0.000256,10]
[385242836,1757701834743,-92432.17,0.000256,7]
[385242837,1757701834753,-250.0,0.000257,10]
[385242838,1757701834764,-3685.71315377,0.00025705,2]
[385242839,1757701834774,-151.080556,0.00025794,8]
[385242840,1757701834783,-17808.49480638,0.000258,2]
[385242841,1757701834792,-151.0,0.000258,7]
[385242842,1757701834801,-173.727909,0.000258,7]
[385242843,1757701834811,-250.0,0.000258,10]
[385242844,1757701834821,-456.0,0.00025857,2]
[385242845,1757701834832,-823.14974,0.0002586,30]
[385242846,1757701834842,-10000.0,0.000259,30]
[385242847,1757701834852,-1961.42,0.000259,7]
[385242848,1757701834862,-3791.33,0.000259,7]
[385242849,1757701834872,-363.0,0.00025943,2]
[385242850,1757701834883,-1500.0,0.00025968,2]
[385242851,1757701834893,-500.0,0.00025973,2]
[385242852,1757701834902,-500.0,0.00025973,2]
[385242853,1757701834912,-500.0,0.00025973,2]
[385242854,1757701834922,-500.0,0.00025973,2]
[385242855,1757701834932,-522.08711689,0.00026,2]
[385242856,1757701834941,-19900.0,0.00026,2]
[385242857,1757701834951,-297063.06839415,0.00026,7]
[385242858,1757701834972,-345.14978172,0.00026,7]
[385242914,1757701838819,-169.78972084,0.00021148,2]
[385242916,1757701838829,-1772.83584668,0.000219,2]
[385242918,1757701838840,-567.98091638,0.000219,2]
[385242921,1757701838852,-17127.61649643,0.000219,2]
[385242923,1757701838862,-1225.202402,0.00024419,2]
[385242924,1757701838872,-2952.21879072,0.00026,7]
[385242926,1757701838883,-5647.63764001,0.00026,7]
[385243122,1757701840732,-7576.13119419,0.00026,7]
[385243428,1757701843725,-167.10432487,0.00020094,2]
[385243431,1757701843734,-217.7145751,0.00024,7]
[385243434,1757701843744,-747.06,0.0002599,10]
[385243437,1757701843755,-29596.63282629,0.00026,7]
[385243439,1757701843769,-35037.84260263,0.00026,7]
[385243442,1757701843784,-217.7145751,0.00025,30]
[385243444,1757701843794,-6024.89506944,0.00026,7]
[385244411,1757701932454,415.806286,0.00013699,2]
[385244757,1757703032673,-265.62946839,0.00015955,2]
[385244758,1757703032683,-265.62946839,0.00016116,2]
[385244759,1757703032694,-197.504718,0.00017586,2]
[385244760,1757703032703,-233.13074058,0.00017762,2]
[385244761,1757703032713,-160.0,0.00017762,2]
[385244762,1757703032722,-217.7145751,0.00017762,2]
[385244763,1757703032734,-160.0,0.00017762,2]
[385244764,1757703032743,-847.0429734,0.00017765,2]
[385244765,1757703032752,-275.39064945,0.00018074,2]
[385244766,1757703032761,-300.0,0.00018173,2]
[385244767,1757703032771,-30299.98,0.00018174,2]
[385244769,1757703032782,-300.0,0.00018174,2]
[385244770,1757703032791,-300.0,0.00018174,2]
[385244772,1757703032802,-300.0,0.00018174,2]
[385244774,1757703032811,-300.0,0.00018174,2]
[385244777,1757703032824,-300.0,0.00018174,2]
[385244781,1757703032836,-300.0,0.00018174,2]
[385244783,1757703032846,-300.0,0.00018174,2]
[385244785,1757703032856,-300.0,0.00018174,2]
[385244787,1757703032867,-300.0,0.00018174,2]
[385244788,1757703032877,-300.0,0.00018174,2]
[385244789,1757703032888,-300.0,0.00018174,2]
[385244790,1757703032900,-300.0,0.00018174,2]
[385244791,1757703032910,-300.0,0.00018174,2]
[385244792,1757703032920,-300.0,0.00018174,2]
[385244793,1757703032929,-300.0,0.00018174,2]
[385244794,1757703032939,-275.39064942,0.00019613,2]
[385244795,1757703032948,-300.0,0.00019825,2]
[385244796,1757703032958,-513.49458728,0.00019893,2]
[385244797,1757703032967,-500.0,0.00019893,2]
[385244798,1757703032976,-500.0,0.00019893,2]
[385244799,1757703032986,-500.0,0.00019893,2]
[385244800,1757703032996,-500.0,0.00019893,2]
[385244801,1757703033006,-500.0,0.00019893,2]
[385244802,1757703033015,-500.0,0.00019893,2]
[385244803,1757703033024,-500.0,0.00019893,2]
[385244804,1757703033034,-500.0,0.00019893,2]
[385244805,1757703033043,-500.0,0.00019893,2]
[385244806,1757703033053,-500.0,0.00019893,2]
[385244807,1757703033063,-500.0,0.00019893,2]
[385244808,1757703033074,-500.0,0.00019893,2]
[385244809,1757703033084,-500.0,0.00019893,2]
[385244810,1757703033093,-500.0,0.00019893,2]
[385244811,1757703033103,-500.0,0.00019893,2]
[385244812,1757703033112,-500.0,0.00019893,2]
[385244813,1757703033122,-500.0,0.00019893,2]
[385244814,1757703033131,-500.0,0.00019893,2]
[385244815,1757703033141,-500.0,0.00019893,2]
[385244816,1757703033150,-500.0,0.00019893,2]
[385244817,1757703033161,-500.0,0.00019893,2]
[385244818,1757703033171,-500.0,0.00019893,2]
[385244819,1757703033180,-500.0,0.00019893,2]
[385244820,1757703033190,-450.71046724,0.00019893,2]
[385244821,1757703033199,-581.90511757,0.00019893,2]
[385244822,1757703033210,-500.0,0.00019893,2]
[385244823,1757703033220,-500.0,0.00019893,2]
[385244824,1757703033229,-500.0,0.00019893,2]
[385244825,1757703033239,-153.12889419,0.00019893,2]
[385244826,1757703033248,-5737.89362212,0.000199,2]
[385244827,1757703033258,-415.806286,0.00020187,2]
[385244828,1757703033267,-600.0,0.00020702,20]
[385244829,1757703033277,-2987.22439827,0.00021149,2]
[385244830,1757703033312,-494.85788473,0.00021149,2]
[385244831,1757703033324,-2255.81133909,0.00021149,2]
[385244832,1757703033334,-245.11,0.0002119,3]
[385244833,1757703033343,-328.32,0.0002119,10]
[385244834,1757703033353,-567.83,0.0002119,10]
[385244835,1757703033362,-473.19,0.0002119,10]
[385244836,1757703033371,-71.79866091,0.000212,2]
[385244915,1757703038544,-275.39064942,0.00021152,2]
[385244916,1757703038554,-2390.67258515,0.000212,2]
[385244917,1757703038565,-354.3381997,0.000212,2]
[385245149,1757703040880,-23281.97023999,0.000212,2]
[385245367,1757703043682,-8280.93876108,0.000212,2]
[385245374,1757703043733,-46976.89378283,0.000212,2]
[385245663,1757703046546,-854.95877278,0.000212,2]
[385245665,1757703046556,-1296.30343871,0.000212,2]
[385245667,1757703046567,-619.90353251,0.000212,2]
[385252202,1757703114415,383.489491,0.00013699,2]
[385256300,1757703903234,62617.627095,0.000137,2]
[385256301,1757703918483,1000.0,0.00018969,20]
[385256307,1757704057079,373.115659,0.00013562,2]
[385256308,1757704081241,373.115659,0.00013562,2]
[385256309,1757704105341,373.115659,0.00013562,2]
[385256310,1757704128252,373.115659,0.00013562,2]
[385256327,1757704152364,373.115659,0.00013562,2]
[385256328,1757704175736,373.115659,0.00013562,2]
[385256329,1757704200084,373.115659,0.00013562,2]
[385256330,1757704224175,373.115659,0.00013562,2]
[385256417,1757704237726,-373.115659,0.00013699,2]
[385256419,1757704237736,-5157.97291262,0.000137,2]
[385256984,1757704242999,-4139.80893045,0.000137,2]
[385256986,1757704243011,-2172.69297278,0.000137,2]
[385256988,1757704243020,-300.0,0.00013973,2]
[385256990,1757704243029,-300.0,0.00013973,2]
[385256992,1757704243038,-300.0,0.00013973,2]
[385256994,1757704243047,-300.0,0.00013973,2]
[385256996,1757704243057,-300.0,0.00013973,2]
[385256998,1757704243066,-300.0,0.00013973,2]
[385257000,1757704243076,-300.0,0.00013973,2]
[385257002,1757704243086,-300.0,0.00013973,2]
[385257004,1757704243097,-300.0,0.00013973,2]
[385257006,1757704243106,-300.0,0.00013973,2]
[385257008,1757704243116,-300.0,0.00013973,2]
[385257010,1757704243127,-300.0,0.00013973,2]
[385257013,1757704243137,-300.0,0.00013973,2]
[385257015,1757704243146,-300.0,0.00013973,2]
[385257017,1757704243157,-300.0,0.00013973,2]
[385257019,1757704243166,-600.0,0.00014251,2]
[385257022,1757704243176,-720.0,0.00015677,2]
[385257023,1757704243185,-864.0,0.00017244,2]
[385257026,1757704243195,-2954.30702722,0.000199,2]
[385257029,1757704243209,-3186.75902018,0.000199,2]
[385257031,1757704243218,-373.115659,0.00020187,2]
[385257033,1757704243227,-847.0429734,0.00020807,2]
[385257035,1757704243236,-160.0,0.00020807,2]
[385257037,1757704243245,-233.13074058,0.00020807,2]
[385257039,1757704243254,-217.7145751,0.00020818,2]
[385257041,1757704243263,-160.0,0.00020818,2]
[385257043,1757704243272,-1000.0,0.00020866,20]
[385257045,1757704243281,-244.0,0.00020866,20]
[385257047,1757704243290,-7859.5033662,0.00020955,2]
[385257049,1757704243299,-6141.06604728,0.00021149,2]
[385257051,1757704243308,-549.932629,0.000219,2]
[385257053,1757704243318,-250.0,0.00022,2]
[385257055,1757704243328,-194.59,0.00022,2]
[385257057,1757704243337,-327.85671858,0.00022297,2]
[385257059,1757704243346,-500.0,0.00022297,2]
[385257061,1757704243355,-509.10056862,0.00022297,2]
[385257063,1757704243365,-239.2365438,0.00022297,2]
[385257065,1757704243374,-23414.9049483,0.00022298,2]
[385257067,1757704243388,-3085.21821426,0.00022298,2]
[385257069,1757704243397,-194.59,0.00022868,2]
[385257071,1757704243406,-1000.0,0.00022952,20]
[385257073,1757704243415,-492.0,0.00022952,20]
[385257075,1757704243424,-151.191,0.00023735,4]
[385257077,1757704243433,-194.59,0.00023737,2]
[385257079,1757704243444,-2223.26597053,0.000238,7]
[385257082,1757704243458,-3827.00402947,0.000238,7]
[385257084,1757704243467,-284.57135492,0.00024391,2]
[385257086,1757704243476,-194.59,0.00024605,2]
[385257088,1757704243487,-200.0,0.00024658,15]
[385257090,1757704243498,-200.6401598,0.00024658,2]
[385257092,1757704243507,-190.17,0.0002479,10]
[385257094,1757704243517,-938.44,0.00024799,2]
[385257096,1757704243526,-250.0,0.000248,10]
[385257098,1757704243536,-14305.29991843,0.000248,2]
[385257100,1757704243544,-294.82271287,0.000248,2]
[385257102,1757704243554,-1753.6922448,0.00024847,2]
[385257104,1757704243564,-500.0,0.00024873,2]
[385257106,1757704243572,-258.9,0.0002489,3]
[385257108,1757704243581,-2653.93,0.000249,7]
[385257110,1757704243591,-329.187627,0.000249,10]
[385257112,1757704243599,-3730.90935008,0.000249,2]
[385257114,1757704243611,-453.34058054,0.000249,2]
[385257117,1757704243627,-12184.28701491,0.000249,2]
[385258051,1757705050693,5000.0,0.000151,7]
[385258052,1757705073755,335.804093,0.00013562,2]
[385258053,1757705097526,335.804093,0.00013562,2]
[385258060,1757705120132,335.804093,0.00013562,2]
[385258064,1757705144248,335.804093,0.00013562,2]
[385258066,1757705167137,335.804093,0.00013562,2]
[385258070,1757705191268,335.804093,0.00013562,2]
[385258073,1757705213790,335.804093,0.00013562,2]
[385258074,1757705236834,335.804093,0.00013562,2]
[385258077,1757705260087,335.804093,0.00013562,2]
[385258078,1757705283852,335.804093,0.00013562,2]
[385258079,1757705307486,335.804093,0.00013562,2]
[385258081,1757705331926,335.804093,0.00013562,2]
[385258090,1757705355622,335.804093,0.00013562,2]
[385258091,1757705379306,335.804093,0.00013562,2]
[385258092,1757705403046,335.804093,0.00013562,2]
[385258094,1757705427113,335.804093,0.00013562,2]
[385258127,1757705432152,-335.804093,0.00013699,2]
[385258128,1757705432162,-410.3,0.00016887,2]
[385258129,1757705432171,-160.0,0.00017891,2]
[385258130,1757705432181,-410.3,0.00017897,2]
[385258131,1757705432190,-410.3,0.00018908,2]
[385258132,1757705432200,-2851.87089521,0.00019063,7]
[385258133,1757705432210,-6326.52786913,0.000199,2]
[385258134,1757705432219,-410.3,0.00019918,2]
[385258135,1757705432229,-335.804093,0.00020187,2]
[385258136,1757705432239,-248.99993556,0.00020197,2]
[385258137,1757705432254,-50000.0,0.00020297,2]
[385258138,1757705432263,-300.0,0.00020297,20]
[385258140,1757705432273,-300.0,0.00020297,20]
[385258142,1757705432283,-300.0,0.00020297,20]
[385258144,1757705432293,-300.0,0.00020297,20]
[385258146,1757705432303,-300.0,0.00020297,20]
[385258148,1757705432312,-300.0,0.00020297,20]
[385258150,1757705432323,-300.0,0.00020297,20]
[385258151,1757705432333,-300.0,0.00020297,20]
[385258152,1757705432342,-300.0,0.00020297,20]
[385258153,1757705432351,-300.0,0.00020297,20]
[385258154,1757705432360,-300.0,0.00020297,20]
[385258155,1757705432369,-300.0,0.00020297,20]
[385258156,1757705432378,-300.0,0.00020297,20]
[385258157,1757705432387,-300.0,0.00020297,20]
[385258158,1757705432396,-300.0,0.00020297,20]
[385258159,1757705432405,-500.0,0.000203,2]
[385258160,1757705432414,-500.0,0.00020883,2]
[385258161,1757705432423,-370.6127296,0.00020883,2]
[385258162,1757705432432,-500.0,0.00020883,2]
[385258163,1757705432443,-500.0,0.00020883,2]
[385258164,1757705432452,-500.0,0.00020883,2]
[385258165,1757705432461,-410.3,0.00020928,2]
[385258166,1757705432470,-495.06035196,0.0002094,2]
[385258167,1757705432479,-6326.5278691,0.00021149,2]
[385258168,1757705432488,-501.06957447,0.000212,2]
[385258169,1757705432498,-500.0,0.000212,2]
[385258170,1757705432507,-248.99993556,0.00021434,2]
[385258171,1757705432516,-410.3,0.00021938,3]
[385258172,1757705432525,-217.7145751,0.00021952,2]
[385258173,1757705432534,-160.0,0.00021952,2]
[385258174,1757705432544,-847.0429734,0.00021952,2]
[385258175,1757705432554,-233.13074058,0.00021965,2]
[385258176,1757705432563,-250.0,0.00022,2]
[385258177,1757705432573,-6326.5278691,0.00022398,2]
[385258178,1757705432582,-1014.71388821,0.000225,2]
[385258179,1757705432591,-600.0,0.0002259,20]
[385258180,1757705432601,-248.99993556,0.00022671,2]
[385258181,1757705432610,-1511.4156731,0.00022815,2]
[385258182,1757705432619,-6231.9192883,0.00022815,2]
[385258183,1757705432628,-391.3016315,0.00022815,2]
[385258184,1757705432637,-410.3,0.00022949,3]